fUST/lending_fUST_20241102
["ID","MTS","AMOUNT","RATE_DAILY","PERIOD"]
[341180452,1730551240850,3000.0,0.00033526,110]
[341180453,1730551267419,3000.0,0.00033526,108]
[341180454,1730551284765,3000.0,0.00033526,106]
[341180455,1730551307931,3000.0,0.00033526,104]
[341180456,1730551359729,3000.0,0.00033526,102]
[341180457,1730551376351,3000.0,0.00033526,100]
[341180459,1730551559153,-179.383654,0.00025986,2]
[341180460,1730551559175,-300.0,0.00026092,2]
[341180461,1730551559200,-56.35361377,0.00026092,2]
[341180462,1730551616093,-179.383654,0.00024619,2]
[341180463,1730551616114,-583.5425909,0.0002488,2]
[341180464,1730551616136,-268.218255,0.00025219,2]
[341180465,1730551616158,-268.218255,0.00025904,2]
[341180466,1730551616180,-300.0,0.00026091,2]
[341180467,1730551616203,-202.0,0.00026091,2]
[341180468,1730551616228,-5000.0,0.00026092,2]
[341180469,1730551616252,-1400.63613754,0.00026093,2]
[341180470,1730551644093,-207.5629464,0.00025689,2]
[341180471,1730551644114,-300.0,0.00026092,2]
[341180472,1730551644151,-13431.87168811,0.00026093,2]
[341180473,1730551653101,-2174.2835522,0.00026093,2]
[341180474,1730551653175,-178.24427632,0.00026093,2]
[341180475,1730551715123,520.0,0.00033527,120]
[341180476,1730551756131,-7714.96434583,0.00026093,2]
[341180477,1730551765090,-179.383654,0.00026297,2]
[341180478,1730551765112,-268.218255,0.00026589,2]
[341180479,1730551765134,-187.566538,0.00026921,2]
[341180480,1730551765155,-398.995277,0.00027031,2]
[341180481,1730551775927,5000.0,0.00026092,2]
[341180535,1730551832153,-182.0872867,0.00027176,2]
[341180537,1730551832163,-179.383654,0.00027975,2]
[341180539,1730551832172,-12628.90325114,0.00028034,2]
[341180583,1730551838219,-12271.09674886,0.00028034,2]
[341180584,1730551838229,-3480.98416139,0.0002987,2]
[341180585,1730551838239,-500.0,0.00029873,5]
[341180586,1730551838248,-500.0,0.00029873,5]
[341180587,1730551838258,-500.0,0.00029873,5]
[341180588,1730551838268,-500.0,0.00029873,5]
[341180589,1730551838280,-500.0,0.00029873,5]
[341180590,1730551838290,-500.0,0.00029873,2]
[341180591,1730551838300,-500.0,0.00029873,5]
[341180592,1730551838310,-500.0,0.00029873,5]
[341180593,1730551838320,-500.0,0.00029873,5]
[341180594,1730551838329,-160.64,0.0002989,3]
[341180595,1730551838340,-466.22225067,0.00029899,2]
[341180596,1730551838354,-3039.89823719,0.00029899,2]
[341180597,1730551838364,-500.0,0.00029899,2]
[341180598,1730551838374,-208.68939475,0.00029899,2]
[341180599,1730551838383,-500.0,0.00029899,2]
[341180600,1730551838396,-500.0,0.00029899,2]
[341180601,1730551838410,-500.0,0.00029899,2]
[341180602,1730551838420,-262.78038338,0.00029899,2]
[341180603,1730551838430,-485.05189202,0.00029899,2]
[341180604,1730551838440,-500.0,0.00029899,2]
[341180605,1730551838451,-500.0,0.00029899,2]
[341180606,1730551838461,-427.59011695,0.00029899,2]
[341180607,1730551838473,-500.0,0.00029899,2]
[341180608,1730551838483,-500.0,0.00029899,2]
[341180609,1730551838493,-500.0,0.00029899,2]
[341180610,1730551838503,-500.0,0.00029899,2]
[341180611,1730551838512,-19483.70806308,0.000299,2]
[341180663,1730551844832,-3039.89823718,0.00029899,2]
[341180664,1730551844843,-8925.81375879,0.000299,2]
[341180665,1730551844855,-13748.47602218,0.000299,2]
[341180666,1730551844939,-911.33321027,0.000299,2]
[341180667,1730551844987,-59.52636308,0.000299,2]
[341180674,1730551846217,-119545.00442074,0.000299,2]
[341180675,1730551846248,-19.80491959,0.000299,2]
[341180677,1730552140986,175.205452,0.00013973,2]
[341180678,1730552141186,175.205452,0.00020447,2]
[341180694,1730552836126,-1743.62479365,0.00025519,2]
[341180695,1730552844102,-1891.51095635,0.00025519,2]
[341180696,1730552844123,-199.497639,0.00025577,2]
[341180697,1730552844146,-233.555176,0.00025843,2]
[341180698,1730552844167,-233.555176,0.00025914,2]
[341180699,1730552844189,-43.44149663,0.00025984,2]
[341180700,1730552950140,-300.0,0.0002556,2]
[341180701,1730552950163,-300.0,0.0002556,2]
[341180702,1730552950186,-24900.0,0.00025561,2]
[341180703,1730552950208,-250.72319484,0.00025884,2]
[341180704,1730552950230,-190.11367937,0.00025984,2]
[341180705,1730552950251,-233.555176,0.00026055,2]
[341180706,1730552950273,-162.250559,0.00026092,2]
[341180707,1730552950296,-162.250559,0.00026114,2]
[341180708,1730552950319,-233.555176,0.00026126,2]
[341180709,1730552950340,-162.250559,0.00026136,2]
[341180710,1730552950362,-162.250559,0.00026158,2]
[341180711,1730552950384,-162.250559,0.00026179,2]
[341180712,1730552950405,-233.555176,0.00026197,2]
[341180713,1730552950426,-162.250559,0.00026201,2]
[341180714,1730552950447,-3635.13575,0.00026204,2]
[341180715,1730552950468,-162.250559,0.00026223,2]
[341180716,1730552950491,-233.555176,0.00026268,2]
[341180717,1730552950511,-233.555176,0.00026339,2]
[341180718,1730552950532,-233.555176,0.0002641,2]
[341180719,1730552950554,-233.555176,0.00026481,2]
[341180720,1730552950577,-233.555176,0.00026551,2]
[341180721,1730552950598,-500.0,0.000266,2]
[341180722,1730552950619,-501.28777618,0.000266,2]
[341180723,1730552950641,-233.555176,0.00026622,2]
[341180724,1730552950661,-233.555176,0.00026693,2]
[341180725,1730552950684,-233.555176,0.00026764,2]
[341180745,1730553038563,-233.555176,0.00026835,2]
[341180746,1730553038573,-3635.13575,0.00026889,2]
[341180747,1730553038583,-233.555176,0.00026906,2]
[341180748,1730553038592,-175.205452,0.00026921,2]
[341180749,1730553038602,-233.555176,0.00026977,2]
[341180750,1730553038611,-233.555176,0.00027048,2]
[341180751,1730553038620,-233.555176,0.00027118,2]
[341180752,1730553038629,-233.555176,0.00027189,2]
[341180753,1730553038638,-5055.29426123,0.00027298,2]
[341180754,1730553038647,-500.0,0.000273,2]
[341180755,1730553038657,-162.887082,0.00027863,2]
[341180756,1730553038666,-1000.0,0.0002867,5]
[341180757,1730553038675,-3504.95052449,0.00028946,2]
[341180758,1730553038684,-161.58709261,0.00028973,5]
[341180759,1730553038693,-500.0,0.00028973,5]
[341180760,1730553038704,-451.87133675,0.00028973,5]
[341180761,1730553038713,-243.8308533,0.00028999,2]
[341180762,1730553038723,-500.0,0.00028999,2]
[341180763,1730553038732,-261.205378,0.00028999,2]
[341180764,1730553038741,-156.04481062,0.00028999,2]
[341180765,1730553038751,-180.43878484,0.00028999,2]
[341180766,1730553038762,-500.0,0.00028999,2]
[341180767,1730553038771,-500.0,0.00028999,2]
[341180768,1730553038782,-500.0,0.00028999,2]
[341180769,1730553038791,-500.0,0.00028999,2]
[341180770,1730553038801,-500.0,0.00028999,2]
[341180771,1730553038810,-500.0,0.00028999,2]
[341180772,1730553038821,-500.0,0.00028999,2]
[341180773,1730553038830,-317.56999887,0.00028999,2]
[341180774,1730553038840,-500.0,0.00028999,2]
[341180775,1730553038849,-500.0,0.00028999,2]
[341180776,1730553038858,-500.0,0.00028999,2]
[341180777,1730553038867,-500.0,0.00028999,2]
[341180778,1730553038877,-500.0,0.00028999,2]
[341180779,1730553038890,-500.0,0.00028999,2]
[341180780,1730553038898,-500.0,0.00028999,2]
[341180781,1730553038908,-500.0,0.00028999,2]
[341180782,1730553038917,-500.0,0.00028999,2]
[341180783,1730553038927,-500.0,0.00028999,2]
[341180784,1730553038938,-500.0,0.00028999,2]
[341180785,1730553038949,-500.0,0.00028999,2]
[341180786,1730553038964,-500.0,0.00028999,2]
[341180787,1730553038979,-226.27803834,0.00028999,2]
[341180788,1730553038991,-500.0,0.00028999,2]
[341180789,1730553039003,-500.0,0.00028999,2]
[341180790,1730553039015,-310.81483379,0.00029,2]
[341180791,1730553039025,-1013.55801261,0.00029,10]
[341180792,1730553039132,-90875.18606052,0.00029,10]
[341180793,1730553039143,-1096.03993192,0.00029046,2]
[341180794,1730553039154,-8202.17026327,0.00029061,2]
[341180795,1730553039165,-1096.03993191,0.00029235,2]
[341180796,1730553039177,-8202.17026327,0.0002936,2]
[341180797,1730553039189,-1096.03993191,0.00029423,2]
[341180798,1730553039201,-1096.03993191,0.00029612,2]
[341180799,1730553039211,-8202.17026327,0.00029622,2]
[341180800,1730553039222,-1096.03993191,0.000298,2]
[341180801,1730553039233,-500.0,0.00029873,5]
[341180802,1730553039245,-500.0,0.00029873,5]
[341180803,1730553039255,-35594.09941526,0.000299,2]
[341180816,1730553040421,-697.97634525,0.000299,2]
[341180828,1730553044118,-807398.92843864,0.000299,2]
[341180830,1730553046332,-1910.2758699,0.000299,2]
[341180859,1730553239593,8802.0,0.0002,2]
[341180861,1730553371249,171.396146,0.00013973,2]
[341180862,1730553371471,171.396146,0.00020447,2]
[341180863,1730553485774,4904.46089648,0.00033596,120]
[341180875,1730553964910,158.9361984,0.00013973,2]
[341180877,1730554029119,-178.94151712,0.00023777,2]
[341180895,1730554147151,-459.57986518,0.00023,2]
[341180896,1730554147172,-166.666666,0.00023094,2]
[341180897,1730554147193,-524.2272559,0.00023559,2]
[341180898,1730554147214,-3000.0,0.00023696,2]
[341180899,1730554147236,-166.666666,0.00023724,2]
[341180900,1730554147257,-2189.09723088,0.00023777,2]
[341180901,1730554147279,-250.0,0.00024267,2]
[341180902,1730554147303,-250.0,0.00024334,2]
[341180903,1730554147325,-166.666666,0.00024353,2]
[341180904,1730554147348,-250.0,0.00024401,2]
[341180905,1730554147372,-250.0,0.00024467,2]
[341180906,1730554147399,-250.0,0.00024534,2]
[341180907,1730554147423,-250.0,0.000246,2]
[341180908,1730554147448,-150.0,0.00024658,2]
[341180909,1730554147473,-250.0,0.00024667,2]
[341180910,1730554147496,-250.0,0.00024733,2]
[341180911,1730554147519,-250.0,0.000248,2]
[341180912,1730554147540,-162.887082,0.00024805,2]
[341180913,1730554147561,-300.0,0.00024833,2]
[341180914,1730554147582,-300.0,0.00024833,2]
[341180915,1730554147609,-9847.05272505,0.00024834,2]
[341180916,1730554152162,-15052.94727495,0.00024834,2]
[341180917,1730554152190,-250.0,0.00024866,2]
[341180918,1730554152217,-250.0,0.00024933,2]
[341180919,1730554152244,-152.0,0.00024941,2]
[341180920,1730554152270,-166.666666,0.00024983,2]
[341180921,1730554152292,-1729.137914,0.00024993,2]
[341180922,1730554152318,-250.0,0.00024999,2]
[341180923,1730554152343,-670.69886951,0.00025,2]
[341180924,1730554152368,-31044.58649554,0.00025,2]
[341180931,1730554183376,222.369877,0.00024029,2]
[341180932,1730554184117,379.59157274,0.00024029,2]
[341180952,1730554232546,-158.223878,0.00023985,2]
[341180953,1730554232557,-485.48735196,0.00024029,2]
[341180954,1730554232568,-84.17692043,0.00024658,2]
[341180958,1730554238611,-215.82307957,0.00024658,2]
[341180959,1730554238621,-5000.0,0.00024833,2]
[341180960,1730554238631,-4560.55870955,0.000249,2]
[341180961,1730554238641,-500.0,0.00024973,2]
[341180962,1730554238650,-500.0,0.00024973,2]
[341180963,1730554238660,-500.0,0.00024973,2]
[341180964,1730554238670,-300.0,0.00024999,2]
[341180965,1730554238680,-300.0,0.00024999,2]
[341180966,1730554238690,-170.68159731,0.00024999,2]
[341180967,1730554238700,-182.8437646,0.00024999,2]
[341180968,1730554238711,-459.23136743,0.00024999,2]
[341180969,1730554238722,-500.0,0.00024999,2]
[341180970,1730554238731,-611.36350418,0.00024999,2]
[341180971,1730554238741,-500.0,0.00024999,2]
[341180972,1730554238751,-500.0,0.00024999,2]
[341180973,1730554238760,-500.0,0.00024999,2]
[341180974,1730554238770,-209.31871899,0.00024999,2]
[341180975,1730554238780,-500.0,0.00024999,2]
[341180976,1730554238789,-590.84111099,0.00024999,2]
[341180977,1730554238799,-191.80867093,0.00024999,2]
[341180978,1730554238812,-537.39941657,0.00025,2]
[341180979,1730554238822,-52010.31360556,0.00025,2]
[341180980,1730554238834,-263.03285479,0.00025,2]
[341181053,1730554243501,-500.0,0.00024973,2]
[341181054,1730554243512,-31013.09187192,0.00025,2]
[341181057,1730554246619,-419.52770081,0.00025,2]
[341181067,1730554336236,-203.340024,0.00023608,2]
[341181068,1730554336258,-1169.7234015,0.00023711,2]
[341181069,1730554336280,-250.0,0.00023848,2]
[341181070,1730554336304,-591.8210663,0.00023992,2]
[341181071,1730554336327,-1116.6808122,0.00024028,2]
[341181072,1730554336349,-2829.9411798,0.00024269,2]
[341181073,1730554336372,-500.0,0.00024973,2]
[341181074,1730554336398,-300.0,0.00024998,2]
[341181075,1730554336420,-300.0,0.00024998,2]
[341181076,1730554336444,-500.0,0.00024999,2]
[341181077,1730554336469,-500.0,0.00024999,2]
[341181078,1730554336490,-370.88567863,0.00024999,2]
[341181079,1730554336516,-500.0,0.00024999,2]
[341181080,1730554336540,-500.0,0.00024999,2]
[341181081,1730554336564,-500.0,0.00024999,2]
[341181082,1730554336587,-160.64229731,0.00024999,2]
[341181083,1730554336609,-540.4636822,0.00024999,2]
[341181084,1730554336631,-406.35198642,0.00024999,2]
[341181085,1730554336652,-427.64213475,0.00024999,2]
[341181086,1730554336675,-500.0,0.00024999,2]
[341181087,1730554336698,-500.0,0.00024999,2]
[341181088,1730554336720,-500.0,0.00024999,2]
[341181089,1730554336747,-500.0,0.00024999,2]
[341181090,1730554336771,-500.0,0.00024999,2]
[341181091,1730554336794,-500.0,0.00024999,2]
[341181092,1730554336816,-500.0,0.00024999,2]
[341181093,1730554336840,-500.0,0.00024999,2]
[341181094,1730554336866,-221.11763686,0.00024999,2]
[341181095,1730554336888,-500.0,0.00024999,2]
[341181096,1730554336911,-500.0,0.00024999,2]
[341181097,1730554336935,-500.0,0.00024999,2]
[341181098,1730554336959,-500.0,0.00024999,2]
[341181099,1730554336981,-500.0,0.00024999,2]
[341181100,1730554337005,-500.0,0.00024999,2]
[341181101,1730554337031,-500.0,0.00024999,2]
[341181102,1730554337061,-500.0,0.00024999,2]
[341181103,1730554337086,-250.0,0.00024999,2]
[341181104,1730554337109,-500.0,0.00024999,2]
[341181105,1730554337131,-500.0,0.00024999,2]
[341181106,1730554337155,-500.0,0.00024999,2]
[341181107,1730554337181,-500.0,0.00024999,2]
[341181108,1730554337204,-500.0,0.00024999,2]
[341181109,1730554337226,-250.0,0.00024999,2]
[341181110,1730554337249,-500.0,0.00024999,2]
[341181111,1730554337272,-162.09180131,0.00024999,2]
[341181112,1730554337296,-550.0,0.00024999,2]
[341181113,1730554337318,-279.07939101,0.00024999,2]
[341181114,1730554337340,-500.0,0.00024999,2]
[341181115,1730554337363,-242.49576804,0.00024999,2]
[341181116,1730554337386,-323.15678998,0.00024999,2]
[341181117,1730554337409,-500.0,0.00024999,2]
[341181118,1730554337433,-500.0,0.00024999,2]
[341181119,1730554337456,-578.24507084,0.00024999,2]
[341181120,1730554337487,-500.0,0.00024999,2]
[341181121,1730554337520,-500.0,0.00024999,2]
[341181122,1730554337545,-500.0,0.00024999,2]
[341181123,1730554337570,-627.86484422,0.00024999,2]
[341181124,1730554337593,-848.45643463,0.00025,2]
[341181128,1730554522870,234.439877,0.00013973,2]
[341181129,1730554523096,234.439877,0.00020447,2]
[341181133,1730554787414,250.0,0.00021891,2]
[341181137,1730554863583,7222.6549357,0.00021915,2]
[341181141,1730554999091,2189.0972309,0.00021655,2]
[341181143,1730555011490,1878.390478,0.00021655,2]
[341181144,1730555046414,3340.832801,0.0002165,2]
[341181146,1730555138840,2147.2811681,0.00021802,2]
[341181148,1730555161878,3000.0,0.00021658,2]
[341181149,1730555162405,1166.76497971,0.00021658,2]
[341181150,1730555354164,-250.0,0.00020924,2]
[341181151,1730555354185,-524.2272559,0.00021188,2]
[341181152,1730555354206,-171.16007024,0.00021615,2]
[341181153,1730555354227,-1894.3675739,0.00021655,2]
[341181154,1730555354249,-300.0,0.00021657,2]
[341181155,1730555354271,-300.0,0.00021657,2]
[341181156,1730555354295,-4910.31941996,0.00021658,2]
[341181186,1730555432718,-171.16007025,0.00021639,2]
[341181187,1730555432728,-300.0,0.00021657,2]
[341181188,1730555432739,-300.0,0.00021657,2]
[341181189,1730555432748,-18822.91560033,0.00021658,2]
[341181190,1730555432757,-152.0,0.00021804,2]
[341181191,1730555432766,-166.666666,0.00021918,2]
[341181192,1730555432776,-86.66108742,0.00022097,2]
[341181231,1730555438900,-163.33891258,0.00022097,2]
[341181232,1730555438910,-250.0,0.00022158,2]
[341181233,1730555438920,-250.0,0.00022218,2]
[341181234,1730555438929,-162.250559,0.00022234,2]
[341181235,1730555438939,-546.73155752,0.0002224,2]
[341181236,1730555438950,-619.69894878,0.0002224,2]
[341181237,1730555438962,-3758.2776168,0.0002224,2]
[341181238,1730555438971,-162.250559,0.00022252,2]
[341181239,1730555438981,-162.250559,0.00022271,2]
[341181240,1730555438990,-250.0,0.00022279,2]
[341181241,1730555438999,-162.250559,0.00022289,2]
[341181242,1730555439009,-162.250559,0.00022308,2]
[341181243,1730555439018,-162.250559,0.00022326,2]
[341181244,1730555439028,-3340.832801,0.00022335,2]
[341181245,1730555439037,-250.0,0.0002234,2]
[341181247,1730555439046,-162.250559,0.00022345,2]
[341181248,1730555439056,-250.0,0.000224,2]
[341181249,1730555439065,-166.666666,0.00022431,2]
[341181250,1730555439074,-250.0,0.00022461,2]
[341181251,1730555439083,-250.0,0.00022521,2]
[341181252,1730555439093,-250.0,0.00022582,2]
[341181253,1730555439105,-250.0,0.00022643,2]
[341181254,1730555439114,-250.0,0.00022703,2]
[341181255,1730555439123,-501.28777618,0.00022725,2]
[341181256,1730555439133,-500.0,0.00022725,2]
[341181257,1730555439142,-502.6661399,0.00022725,2]
[341181258,1730555439152,-250.0,0.00022764,2]
[341181259,1730555439161,-500.0,0.00022786,2]
[341181260,1730555439170,-250.0,0.00022824,2]
[341181261,1730555439179,-250.0,0.00022885,2]
[341181262,1730555439188,-593.74132561,0.00022915,2]
[341181263,1730555439198,-500.0,0.00022915,2]
[341181264,1730555439207,-250.0,0.00022915,2]
[341181265,1730555439220,-250.0,0.00022915,2]
[341181266,1730555439230,-241.98498269,0.00022915,2]
[341181267,1730555439239,-763.84021186,0.00022916,2]
[341181268,1730555439249,-4405.67203996,0.00022916,2]
[341181269,1730555439263,-614.08015868,0.00022916,2]
[341181270,1730555439275,-3704.69599539,0.00022916,2]
[341181271,1730555439304,-4944.70573877,0.00022929,2]
[341181272,1730555439314,-166.666666,0.00022944,2]
[341181273,1730555439324,-250.0,0.00022946,2]
[341181274,1730555439333,-250.0,0.00023006,2]
[341181275,1730555439342,-3340.832801,0.0002302,2]
[341181276,1730555439354,-500.0,0.00023037,2]
[341181277,1730555439363,-250.0,0.00023067,2]
[341181278,1730555439373,-250.0,0.00023128,2]
[341181279,1730555439382,-500.0,0.0002314,2]
[341181280,1730555439391,-0.00262768,0.00023147,2]
[341181281,1730555439404,-5855.41655109,0.00023147,2]
[341181282,1730555439416,-2546.0,0.00023147,2]
[341181366,1730555446671,-323.02901526,0.00023147,2]
[341181367,1730555446680,-250.0,0.00023188,2]
[341181368,1730555446690,-250.0,0.00023249,2]
[341181369,1730555446700,-170.979707,0.00023363,2]
[341181370,1730555446709,-166.666666,0.00023456,2]
[341181372,1730555446718,-207.91384883,0.00023469,2]
[341181381,1730555646734,253.31045,0.00013973,2]
[341181392,1730556147233,173.2686483,0.00013973,2]
[341181393,1730556330329,1878.100667,0.00020162,2]
[341181395,1730556398116,-253.31045,0.00020447,2]
[341181396,1730556398138,-162.887082,0.00020455,2]
[341181397,1730556398159,-1878.100667,0.00020847,2]
[341181398,1730556398180,-642.98513613,0.00020853,2]
[341181399,1730556505618,3000.0,0.00019805,2]
[341181400,1730556617971,900.097481,0.00019721,2]
[341181445,1730556631930,-222.369877,0.00020252,2]
[341181446,1730556631940,-300.0,0.00020332,2]
[341181447,1730556631951,-300.0,0.00020332,2]
[341181448,1730556631962,-24900.0,0.00020333,2]
[341181449,1730556631971,-8083.30409565,0.00020943,2]
[341181450,1730556631981,-4004.85925848,0.00021005,2]
[341181451,1730556631992,-813.04089432,0.00021202,2]
[341181452,1730556632002,-8083.30409565,0.00021202,2]
[341181453,1730556632011,-250.0,0.00021264,2]
[341181454,1730556632021,-324.42775854,0.00021274,2]
[341181455,1730556632030,-500.0,0.00021274,2]
[341181456,1730556632039,-500.0,0.00021274,2]
[341181457,1730556632049,-500.0,0.00021274,2]
[341181458,1730556632058,-500.0,0.00021274,2]
[341181459,1730556632067,-500.0,0.00021274,2]
[341181460,1730556632077,-500.0,0.00021274,2]
[341181461,1730556632086,-561.86106089,0.00021274,2]
[341181462,1730556632096,-250.0,0.00021322,2]
[341181463,1730556632106,-4556.5472806,0.0002133,2]
[341181464,1730556632115,-250.0,0.00021381,2]
[341181465,1730556632125,-250.0,0.00021439,2]
[341181466,1730556632135,-250.0,0.00021497,2]
[341181467,1730556632144,-1878.100667,0.00021532,2]
[341181468,1730556632153,-250.0,0.00021556,2]
[341181469,1730556632163,-250.0,0.00021614,2]
[341181470,1730556632173,-8083.30409565,0.00021631,2]
[341181471,1730556632182,-250.0,0.00021672,2]
[341181472,1730556632191,-8083.30409565,0.00021683,2]
[341181473,1730556632205,-250.0,0.00021731,2]
[341181474,1730556632214,-250.0,0.00021789,2]
[341181475,1730556632224,-250.0,0.00021847,2]
[341181476,1730556632233,-2033.55526984,0.00021864,2]
[341181477,1730556632244,-250.0,0.00021906,2]
[341181478,1730556632254,-5000.0,0.00021917,2]
[341181479,1730556632263,-5000.0,0.00021917,2]
[341181480,1730556632272,-5000.0,0.00021917,2]
[341181481,1730556632282,-5000.0,0.00021917,2]
[341181482,1730556632293,-166.666666,0.00021918,2]
[341181483,1730556632303,-250.0,0.00021964,2]
[341181484,1730556632312,-250.0,0.00022022,2]
[341181485,1730556632322,-250.0,0.00022081,2]
[341181486,1730556632332,-8083.30409565,0.000221,2]
[341181487,1730556632341,-420.0,0.00022132,2]
[341181488,1730556632351,-250.0,0.00022139,2]
[341181489,1730556632360,-5000.0,0.00022146,2]
[341181490,1730556632370,-500.0,0.00022173,2]
[341181491,1730556632380,-500.0,0.00022173,2]
[341181492,1730556632391,-509.31595472,0.00022173,2]
[341181493,1730556632400,-250.0,0.00022197,2]
[341181494,1730556632409,-250.0,0.00022256,2]
[341181495,1730556632419,-250.0,0.00022314,2]
[341181496,1730556632429,-5000.0,0.00022348,2]
[341181497,1730556632533,-420.0,0.00022366,2]
[341181498,1730556632563,-250.0,0.00022372,2]
[341181499,1730556632573,-166.666666,0.00022431,2]
[341181500,1730556632583,-8083.30409565,0.0002246,2]
[341181501,1730556632592,-8083.30409565,0.00022614,2]
[341181502,1730556632601,-2033.55526983,0.00022623,2]
[341181503,1730556632610,-190.830971,0.00022659,2]
[341181504,1730556632620,-5000.0,0.00022827,2]
[341181505,1730556632630,-527.6537175,0.0002285,2]
[341181506,1730556632639,-500.0,0.0002285,2]
[341181507,1730556632649,-500.0,0.0002285,2]
[341181508,1730556632658,-8083.30409565,0.00022895,2]
[341181509,1730556632668,-166.666666,0.00022944,2]
[341181510,1730556632678,-8083.30409573,0.00023169,2]
[341181511,1730556632688,-2033.55526983,0.00023382,2]
[341181512,1730556632698,-166.666666,0.00023456,2]
[341181513,1730556632707,-5000.0,0.00023549,2]
[341181514,1730556632716,-500.0,0.0002355,2]
[341181515,1730556632725,-500.0,0.0002355,2]
[341181516,1730556632735,-500.0,0.00023742,2]
[341181517,1730556632746,-500.0,0.00023742,2]
[341181518,1730556632755,-500.0,0.00023742,2]
[341181519,1730556632765,-500.0,0.00023742,2]
[341181520,1730556632774,-500.0,0.00023742,2]
[341181521,1730556632784,-500.0,0.00023742,2]
[341181522,1730556632794,-204.85316858,0.00023742,2]
[341181523,1730556632804,-500.0,0.00023742,2]
[341181524,1730556632814,-500.0,0.00023742,2]
[341181525,1730556632823,-500.0,0.00023742,2]
[341181526,1730556632833,-226.34855684,0.000238,2]
[341181527,1730556632843,-226.34855683,0.000238,2]
[341181528,1730556632852,-226.34855683,0.000238,2]
[341181529,1730556632861,-166.666666,0.00023969,2]
[341181530,1730556632870,-587.0,0.00024091,2]
[341181531,1730556632880,-2033.55526983,0.00024141,2]
[341181532,1730556632890,-5000.0,0.00024215,2]
[341181533,1730556632899,-166.666666,0.00024482,2]
[341181534,1730556632913,-587.0,0.00024602,2]
[341181535,1730556632923,-2033.55526983,0.000249,2]
[341181536,1730556632933,-5000.0,0.00024997,2]
[341181537,1730556632942,-5000.0,0.00024998,2]
[341181538,1730556632954,-5000.0,0.00024998,2]
[341181539,1730556632964,-2872.47218023,0.00024999,2]
[341181557,1730556638017,-395.7623401,0.00021201,2]
[341181558,1730556638027,-622.39307289,0.00022145,2]
[341181559,1730556638036,-203.60334771,0.00022145,2]
[341181560,1730556638046,-186.50932594,0.00022145,2]
[341181561,1730556638055,-173.767077,0.00022145,2]
[341181562,1730556638064,-2127.52781977,0.00024999,2]
[341181563,1730556638073,-5000.0,0.00024999,2]
[341181564,1730556638083,-5000.0,0.00024999,2]
[341181565,1730556638092,-5000.0,0.00024999,2]
[341181566,1730556638102,-2161.75420808,0.00024999,2]
[341181567,1730556638113,-529.45720525,0.00024999,2]
[341181601,1730556639932,-859.89432023,0.00024999,2]
[341181604,1730556639959,-1448.89426644,0.00024999,2]
[341181606,1730556639968,-2134.93602216,0.00024999,2]
[341181631,1730556642935,-326.36481501,0.00024999,2]
[341181671,1730556645943,-170.979707,0.00023767,2]
[341181673,1730556645952,-2538.69916283,0.00024999,2]
[341181675,1730556645963,-5496.05447149,0.00025,2]
[341181678,1730556645976,-1721.4188608,0.00025,2]
[341181696,1730556692843,253.515642,0.00013973,2]
[341181700,1730556788339,166.0,0.00013,120]
[341181703,1730556832248,161.067,0.0002214,60]
[341181704,1730556832824,161.11,0.0002296,60]
[341181705,1730556833916,161.454,0.0002378,60]
[341181711,1730557145473,2367.31450323,0.00033698,30]
[341181714,1730557246815,170.485368,0.00013973,2]